[Event "Icelandic Team-ch Premier 2021-22"]
[Site "Reykjavik"]
[Date "2022.03.06"]
[Round "10.9"]
[White "Hjartarson, Johann"]
[Black "Stefansson, Vignir Vatnar"]
[Result "1/2-1/2"]
[ECO "C48"]
[WhiteElo "2470"]
[BlackElo "2484"]
[Annotator "ChessBase"]
[PlyCount "131"]
[EventDate "2022.03.05"]
[EventType "team-tourn"]
[EventCountry "ISL"]
[SourceTitle "playchess.com"]
[Source "ChessBase"]
[SourceQuality "1"]
[TimeControl "5400+30"]

1. e4 {[%emt 0:00:04]} e5 {[%emt 0:00:49]} 2. Nf3 {[%emt 0:00:15]} Nf6 {[%emt 0:00:10]} 3. Nc3 {[%emt 0:02:27]} Nc6 {[%emt 0:00:26]} 4. Bb5 {[%emt 0:00:06]} Nd4 {[%emt 0:00:09]} 5. Bc4 {[%emt 0:00:09]} d6 {[%emt 0:09:57]} 6. h3 {[%emt 0:17:47]} Be7 {[%emt 0:02:19]} 7. d3 {[%emt 0:00:18]} c6 {[%emt 0:02:38]} 8. Nxd4 {[%emt 0:01:20]} exd4 {[%emt 0:00:18]} 9. Ne2 {[%emt 0:00:08]} d5 {[%emt 0:12:49]} 10. exd5 {[%emt 0:00:38]} c5 {[%emt 0:03:22]} 11. Nf4 {[%emt 0:03:45]} O-O {[%emt 0:00:43]} 12. O-O {[%emt 0:06:49]} b6 {[%emt 0:06:00]} 13. Re1 {[%emt 0:11:11]} Bb7 {[%emt 0:01:01]} 14. Bd2 {[%emt 0:02:11]} Qd7 {[%emt 0:06:04]} 15. c3 {[%emt 0:04:06]} Rfd8 {[%emt 0:10:49]} 16. cxd4 {[%emt 0:01:52]} cxd4 {[%emt 0:00:48]} 17. Rc1 {[%emt 0:03:16]} Bf8 {[%emt 0:02:28]} 18. Qb3 {[%emt 0:11:47]} Nxd5 {[%emt 0:01:13]} 19. Nxd5 {[%emt 0:02:18]} Bxd5 {[%emt 0:00:06]} 20. Bxd5 {[%emt 0:00:29]} Qxd5 {[%emt 0:00:06]} 21. Qxd5 {[%emt 0:00:04]} Rxd5 {[%emt 0:00:06]} 22. Rc7 {[%emt 0:00:49]} a5 {[%emt 0:02:01]} 23. Rb7 {[%emt 0:03:57]} Bc5 {[%emt 0:02:44]} 24. a4 {[%emt 0:01:08]} h5 {[%emt 0:04:45]} 25. g3 {[%emt 0:01:58]} Rc8 {[%emt 0:02:48]} 26. Kg2 {[%emt 0:00:28]} g5 {[%emt 0:01:25]} 27. g4 {[%emt 0:00:48]} hxg4 {[%emt 0:00:33]} 28. hxg4 {[%emt 0:00:02]} Kg7 {[%emt 0:01:33]} 29. Rh1 {[%emt 0:00:45]} Re8 {[%emt 0:00:57]} 30. Kf3 {[%emt 0:03:40]} Rde5 {[%emt 0:01:16]} 31. Rh5 {[%emt 0:01:11]} Kg6 {[%emt 0:00:08]} 32. Rc7 {[%emt 0:00:32]} Be7 {[%emt 0:08:11]} 33. Rc6+ {[%emt 0:00:48]} Re6 {[%emt 0:00:04]} 34. Rxe6+ {[%emt 0:00:05]} fxe6 {[%emt 0:00:04]} 35. Rh1 {[%emt 0:00:48]} Rf8+ {[%emt 0:00:16]} 36. Ke2 {[%emt 0:00:12]} Rc8 {[%emt 0:01:10]} 37. Rc1 {[%emt 0:00:07]} Rxc1 {[%emt 0:03:22]} 38. Bxc1 {[%emt 0:00:03]} e5 {[%emt 0:00:08]} 39. Kf3 {[%emt 0:00:43]} Kf6 {[%emt 0:00:06]} 40. Ke4 {[%emt 0:00:05]} Ke6 {[%emt 0:00:03]} 41. Bd2 {[%emt 0:00:19]} Bf6 {[%emt 0:00:24]} 42. b4 {[%emt 0:02:02]} axb4 {[%emt 0:00:12]} 43. Bxb4 {[%emt 0:00:03]} Bd8 {[%emt 0:00:24]} 44. Bd2 {[%emt 0:04:26]} Bf6 {[%emt 0:02:24]} 45. Bc1 {[%emt 0:03:15]} Be7 {[%emt 0:00:32]} 46. Kf3 {[%emt 0:01:32]} Kd5 {[%emt 0:00:29]} 47. Ke2 {[%emt 0:00:06]} e4 {[%emt 0:02:56]} 48. dxe4+ {[%emt 0:00:06]} Kxe4 {[%emt 0:00:37]} 49. f3+ {[%emt 0:00:05]} Kd5 {[%emt 0:00:18]} 50. Kd3 {[%emt 0:00:30]} Bf6 {[%emt 0:00:23]} 51. f4 {[%emt 0:01:26]} gxf4 {[%emt 0:00:08]} 52. Bxf4 {[%emt 0:00:02]} Bd8 {[%emt 0:00:33]} 53. Bg3 {[%emt 0:00:46]} Bf6 {[%emt 0:00:40]} 54. Bf4 {[%emt 0:02:35]} Bd8 {[%emt 0:00:08]} 55. g5 {[%emt 0:00:12]} Bxg5 {[%emt 0:00:09]} 56. Bxg5 {[%emt 0:00:06]} Kc6 {[%emt 0:00:07]} 57. Kc4 {[%emt 0:00:14]} d3 {[%emt 0:00:19]} 58. Bd2 {[%emt 0:00:14]} Kb7 {[%emt 0:00:50]} 59. Kxd3 {[%emt 0:00:10]} Ka6 {[%emt 0:00:14]} 60. Kc4 {[%emt 0:00:05]} Kb7 {[%emt 0:00:09]} 61. Kb5 {[%emt 0:00:05]} Ka7 {[%emt 0:00:15]} 62. Be3 {[%emt 0:00:08]} Kb7 {[%emt 0:00:07]} 63. Bf2 {[%emt 0:00:04]} Ka8 {[%emt 0:00:43]} 64. Ka6 {[%emt 0:00:09]} Kb8 {[%emt 0:00:03]} 65. Bg3+ {[%emt 0:00:10]} Ka8 {[%emt 0:00:06]} 66. Kxb6 {[%emt 0:00:24]} 1/2-1/2

[Event "Icelandic Team-ch Premier 2021-22"]
[Site "Reykjavik"]
[Date "2022.03.06"]
[Round "10.10"]
[White "Einarsson, Halldor Gretar"]
[Black "Pakleza, Zbigniew"]
[Result "0-1"]
[ECO "A21"]
[WhiteElo "2207"]
[BlackElo "2500"]
[Annotator "ChessBase"]
[PlyCount "95"]
[EventDate "2022.03.05"]
[EventType "team-tourn"]
[EventCountry "ISL"]
[SourceTitle "playchess.com"]
[Source "ChessBase"]
[SourceQuality "1"]
[TimeControl "5400+30"]

1. d4 {[%emt 0:00:05]} d6 {[%emt 0:00:01]} 2. c4 {[%emt 0:00:58]} e5 {[%emt 0:00:04]} 3. Nc3 {[%emt 0:01:16]} exd4 {[%emt 0:00:07]} 4. Qxd4 {[%emt 0:00:08]} Nc6 {[%emt 0:00:08]} 5. Qd2 {[%emt 0:01:04]} Nf6 {[%emt 0:00:04]} 6. b3 {[%emt 0:00:48]} a5 {[%emt 0:00:06]} 7. Bb2 {[%emt 0:00:45]} a4 {[%emt 0:00:03]} 8. Rd1 {[%emt 0:01:03]} axb3 {[%emt 0:02:08]} 9. axb3 {[%emt 0:00:08]} Be7 {[%emt 0:20:43]} 10. e4 {[%emt 0:10:30]} O-O {[%emt 0:00:04]} 11. Bd3 {[%emt 0:02:02]} Nd4 {[%emt 0:09:28]} 12. Bc2 {[%emt 0:00:27]} Nxc2+ {[%emt 0:00:22]} 13. Qxc2 {[%emt 0:00:08]} c6 {[%emt 0:01:35]} 14. Nge2 {[%emt 0:11:27]} Qc7 {[%emt 0:03:50]} 15. O-O {[%emt 0:01:00]} Re8 {[%emt 0:00:03]} 16. Nd4 {[%emt 0:06:56]} Bf8 {[%emt 0:02:27]} 17. f3 {[%emt 0:07:55]} Nd7 {[%emt 0:05:18]} 18. Kh1 {[%emt 0:05:29]} Ra5 {[%emt 0:01:27]} 19. Nf5 {[%emt 0:05:21]} Ne5 {[%emt 0:02:00]} 20. Qd2 {[%emt 0:03:46]} Rd8 {[%emt 0:21:24]} 21. Qd4 {[%emt 0:04:56]} f6 {[%emt 0:02:57]} 22. Ne3 {[%emt 0:03:29]} Ra6 {[%emt 0:02:24]} 23. Ne2 {[%emt 0:07:34]} Qb6 {[%emt 0:03:16]} 24. Qc3 {[%emt 0:01:46]} Ra2 {[%emt 0:00:33]} 25. Nc1 {[%emt 0:04:19]} Ra8 {[%emt 0:02:21]} 26. Ne2 {[%emt 0:00:35]} Bd7 {[%emt 0:03:40]} 27. Ra1 {[%emt 0:02:32]} Be8 {[%emt 0:03:21]} 28. Nf4 {[%emt 0:06:07]} Bf7 {[%emt 0:00:21]} 29. Rfd1 {[%emt 0:01:26]} Qc7 {[%emt 0:06:40]} 30. Nf5 {[%emt 0:01:11]} Rxa1 {[%emt 0:01:36]} 31. Rxa1 {[%emt 0:00:30]} Qb8 {[%emt 0:00:12]} 32. Nd4 {[%emt 0:01:51]} Re8 {[%emt 0:00:19]} 33. Nde2 {[%emt 0:01:09]} b5 {[%emt 0:00:59]} 34. cxb5 {[%emt 0:00:43]} Qxb5 {[%emt 0:00:02]} 35. Nd4 {[%emt 0:01:54]} Qb6 {[%emt 0:00:01]} 36. b4 {[%emt 0:01:40]} Rb8 {[%emt 0:03:33]} 37. Nd3 {[%emt 0:02:07]} c5 {[%emt 0:02:35]} 38. Nc2 {[%emt 0:01:26]} cxb4 {[%emt 0:01:48]} 39. Ncxb4 {[%emt 0:01:21]} d5 {[%emt 0:00:19]} 40. Nxe5 {[%emt 0:01:29]} Bxb4 {[%emt 0:00:46]} 41. Qd3 {[%emt 0:01:05]} fxe5 {[%emt 0:00:21]} 42. Bxe5 {[%emt 0:00:05]} Bd6 {[%emt 0:00:55]} 43. Bd4 {[%emt 0:00:37]} Qb5 {[%emt 0:00:55]} 44. Qc3 {[%emt 0:00:18]} dxe4 {[%emt 0:00:22]} 45. fxe4 {[%emt 0:00:28]} Qb4 {[%emt 0:00:43]} 46. Qd3 {[%emt 0:01:03]} Qb3 {[%emt 0:00:31]} 47. Qd2 {[%emt 0:00:28]} Qe6 {[%emt 0:00:25]} 48. Qd3 {[%emt 0:01:05]} 0-1

[Event "Icelandic Team-ch Premier 2021-22"]
[Site "Reykjavik"]
[Date "2022.03.06"]
[Round "10.11"]
[White "Thorfinnsson, Bjorn"]
[Black "Ornolfsson, Magnus P."]
[Result "1-0"]
[ECO "D03"]
[WhiteElo "2387"]
[BlackElo "2163"]
[Annotator "NA"]
[PlyCount "75"]
[EventDate "2022.03.05"]
[EventType "team-tourn"]
[EventCountry "ISL"]
[SourceTitle "playchess.com"]
[Source "ChessBase"]
[SourceQuality "1"]
[TimeControl "5400+30"]

1. d4 {[%emt 0:00:03]} Nf6 {[%emt 0:00:10]} 2. Nf3 {[%emt 0:00:19]} e6 {[%emt 0:00:13]} 3. Bg5 {[%emt 0:00:16]} d5 {[%emt 0:00:46]} 4. e3 {[%emt 0:00:14]} Be7 {[%emt 0:00:51]} 5. Bd3 {[%emt 0:00:25]} Nbd7 {[%emt 0:03:05]} 6. Nbd2 {[%emt 0:02:41]} O-O {[%emt 0:04:00]} 7. c3 {[%emt 0:00:56]} c5 {[%emt 0:01:51]} 8. h4 {[%emt 0:00:52]} b6 {[%emt 0:02:59]} 9. g4 {[%emt 0:01:32]} Bb7 {[%emt 0:01:26]} 10. Bxf6 {[%emt 0:03:00]} Nxf6 {[%emt 0:00:45]} 11. g5 {[%emt 0:00:08]} Ne4 {[%emt 0:02:55]} 12. Qc2 {[%emt 0:00:17]} c4 {[%emt 0:16:50]} 13. Nxc4 {[%emt 0:00:33]} dxc4 {[%emt 0:02:28]} 14. Bxe4 {[%emt 0:00:06]} Bxe4 {[%emt 0:00:19]} 15. Qxe4 {[%emt 0:00:06]} b5 {[%emt 0:00:53]} 16. a3 {[%emt 0:04:11]} a5 {[%emt 0:02:36]} 17. Ke2 {[%emt 0:00:57]} Bd6 {[%emt 0:08:20]} 18. h5 {[%emt 0:05:24]} Re8 {[%emt 0:02:42]} 19. g6 {[%emt 0:01:19]} f5 {[%emt 0:02:01]} 20. Qc6 {[%emt 0:03:39]} h6 {[%emt 0:08:11]} 21. Qxb5 {[%emt 0:01:57]} Qc7 {[%emt 0:01:23]} 22. Qa4 {[%emt 0:03:21]} Rab8 {[%emt 0:01:13]} 23. Rab1 {[%emt 0:00:17]} e5 {[%emt 0:03:49]} 24. dxe5 {[%emt 0:05:44]} Bxe5 {[%emt 0:00:05]} 25. Rhd1 {[%emt 0:00:09]} Bf6 {[%emt 0:02:07]} 26. Rd5 {[%emt 0:03:10]} f4 {[%emt 0:02:28]} 27. Qxa5 {[%emt 0:00:46]} Qxa5 {[%emt 0:01:28]} 28. Rxa5 {[%emt 0:00:05]} Bxc3 {[%emt 0:01:04]} 29. Rc5 {[%emt 0:00:45]} fxe3 {[%emt 0:01:43]} 30. fxe3 {[%emt 0:00:45]} Rxb2+ {[%emt 0:04:31]} 31. Rxb2 {[%emt 0:00:26]} Bxb2 {[%emt 0:00:04]} 32. a4 {[%emt 0:00:53]} c3 {[%emt 0:02:42]} 33. a5 {[%emt 0:00:24]} Ba3 {[%emt 0:01:03]} 34. Rc7 {[%emt 0:01:01]} Ra8 {[%emt 0:04:47]} 35. Nd4 {[%emt 0:01:34]} Rxa5 {[%emt 0:03:21]} 36. Rc8+ {[%emt 0:02:08]} Bf8 {[%emt 0:00:05]} 37. Nc6 {[%emt 0:00:29]} Ra2+ {[%emt 0:01:21]} 38. Kf3 {[%emt 0:00:06]} 1-0

[Event "Icelandic Team-ch Premier 2021-22"]
[Site "Reykjavik"]
[Date "2022.03.06"]
[Round "10.12"]
[White "Hreinsson, Hlidar"]
[Black "Gunnarsson, Jon Viktor"]
[Result "0-1"]
[ECO "B52"]
[WhiteElo "2180"]
[BlackElo "2439"]
[Annotator "NA"]
[PlyCount "74"]
[EventDate "2022.03.05"]
[EventType "team-tourn"]
[EventCountry "ISL"]
[SourceTitle "playchess.com"]
[Source "ChessBase"]
[SourceQuality "1"]
[TimeControl "5400+30"]

1. e4 {[%emt 0:00:08]} c5 {[%emt 0:00:13]} 2. Nf3 {[%emt 0:00:05]} d6 {[%emt 0:00:06]} 3. Bb5+ {[%emt 0:00:29]} Bd7 {[%emt 0:01:37]} 4. Bxd7+ {[%emt 0:00:26]} Qxd7 {[%emt 0:00:16]} 5. c4 {[%emt 0:01:29]} Nf6 {[%emt 0:01:34]} 6. d3 {[%emt 0:00:59]} Nc6 {[%emt 0:00:50]} 7. Nc3 {[%emt 0:00:22]} g6 {[%emt 0:00:32]} 8. O-O {[%emt 0:01:15]} Bg7 {[%emt 0:00:06]} 9. h3 {[%emt 0:01:23]} O-O {[%emt 0:01:03]} 10. Nh2 {[%emt 0:06:40]} Nd4 {[%emt 0:12:10]} 11. Ne2 {[%emt 0:02:21]} Nxe2+ {[%emt 0:05:14]} 12. Qxe2 {[%emt 0:04:52]} b5 {[%emt 0:03:23]} 13. Rb1 {[%emt 0:04:27]} a5 {[%emt 0:07:54]} 14. f4 {[%emt 0:10:55]} bxc4 {[%emt 0:04:28]} 15. dxc4 {[%emt 0:02:00]} a4 {[%emt 0:03:19]} 16. Nf3 {[%emt 0:04:43]} Rab8 {[%emt 0:04:32]} 17. Rd1 {[%emt 0:06:15]} Qc6 {[%emt 0:03:05]} 18. Re1 {[%emt 0:04:40]} Ne8 {[%emt 0:06:49]} 19. e5 {[%emt 0:07:14]} Nc7 {[%emt 0:02:13]} 20. Bd2 {[%emt 0:10:56]} Ne6 {[%emt 0:01:13]} 21. Qe4 {[%emt 0:01:50]} Rfc8 {[%emt 0:06:15]} 22. Bc3 {[%emt 0:03:29]} Qxe4 {[%emt 0:06:41]} 23. Rxe4 {[%emt 0:00:08]} dxe5 {[%emt 0:01:07]} 24. fxe5 {[%emt 0:05:50]} Rd8 {[%emt 0:00:53]} 25. Kf2 {[%emt 0:02:32]} Rd3 {[%emt 0:04:30]} 26. Rc1 {[%emt 0:03:06]} h5 {[%emt 0:02:51]} 27. Ke2 {[%emt 0:01:25]} Rbd8 {[%emt 0:01:36]} 28. Ba5 {[%emt 0:00:53]} R8d7 {[%emt 0:00:09]} 29. Bc3 {[%emt 0:01:56]} Bh6 {[%emt 0:05:09]} 30. Ne1 {[%emt 0:03:12]} Ng5 {[%emt 0:03:18]} 31. Rh4 {[%emt 0:02:37]} Rg3 {[%emt 0:00:35]} 32. Kf2 {[%emt 0:02:39]} Ne6 {[%emt 0:00:47]} 33. Rc2 {[%emt 0:00:27]} Rg5 {[%emt 0:00:08]} 34. Nf3 {[%emt 0:01:45]} Rf5 {[%emt 0:00:11]} 35. g4 {[%emt 0:01:33]} Rxf3+ {[%emt 0:00:12]} 36. Kxf3 {[%emt 0:00:06]} Bg5 {[%emt 0:00:07]} 37. Be1 {[%emt 0:00:52]} Nd4+ {[%emt 0:00:12]} 0-1

[Event "Icelandic Team-ch Premier 2021-22"]
[Site "Reykjavik"]
[Date "2022.03.06"]
[Round "10.13"]
[White "Arnason, Jon L"]
[Black "Ingvason, Johann"]
[Result "1-0"]
[ECO "C10"]
[WhiteElo "2410"]
[BlackElo "2183"]
[Annotator "ChessBase"]
[PlyCount "131"]
[EventDate "2022.03.05"]
[EventType "team-tourn"]
[EventCountry "ISL"]
[SourceTitle "playchess.com"]
[Source "ChessBase"]
[SourceQuality "1"]
[TimeControl "5400+30"]

1. e4 {[%emt 0:00:12]} e6 {[%emt 0:00:38]} 2. d4 {[%emt 0:00:15]} d5 {[%emt 0:00:07]} 3. Nd2 {[%emt 0:00:42]} dxe4 {[%emt 0:00:07]} 4. Nxe4 {[%emt 0:00:06]} Be7 {[%emt 0:00:10]} 5. Nf3 {[%emt 0:01:54]} Nd7 {[%emt 0:00:34]} 6. Bd3 {[%emt 0:06:23]} Ngf6 {[%emt 0:00:06]} 7. Qe2 {[%emt 0:00:20]} O-O {[%emt 0:00:35]} 8. Bg5 {[%emt 0:04:29]} c5 {[%emt 0:00:47]} 9. c3 {[%emt 0:05:37]} cxd4 {[%emt 0:00:47]} 10. Nxd4 {[%emt 0:02:38]} Ne5 {[%emt 0:11:03]} 11. Bc2 {[%emt 0:03:20]} Nxe4 {[%emt 0:01:19]} 12. Qxe4 {[%emt 0:03:28]} Ng6 {[%emt 0:00:13]} 13. Bxe7 {[%emt 0:09:13]} Qxe7 {[%emt 0:00:46]} 14. O-O-O {[%emt 0:00:49]} e5 {[%emt 0:02:43]} 15. Nf5 {[%emt 0:07:14]} Bxf5 {[%emt 0:04:18]} 16. Qxf5 {[%emt 0:00:13]} Rad8 {[%emt 0:01:08]} 17. g3 {[%emt 0:02:50]} Rxd1+ {[%emt 0:16:35]} 18. Rxd1 {[%emt 0:00:05]} Rd8 {[%emt 0:00:05]} 19. Rxd8+ {[%emt 0:05:55]} Qxd8 {[%emt 0:00:09]} 20. h4 {[%emt 0:00:11]} Qe7 {[%emt 0:00:11]} 21. b4 {[%emt 0:05:42]} Nf8 {[%emt 0:00:12]} 22. Bb3 {[%emt 0:01:45]} g6 {[%emt 0:00:51]} 23. Qe4 {[%emt 0:00:16]} Kg7 {[%emt 0:00:40]} 24. f4 {[%emt 0:02:29]} f5 {[%emt 0:16:21]} 25. Qxe5+ {[%emt 0:02:35]} Qxe5 {[%emt 0:00:05]} 26. fxe5 {[%emt 0:00:05]} Nd7 {[%emt 0:02:08]} 27. e6 {[%emt 0:05:17]} Nf6 {[%emt 0:00:05]} 28. e7 {[%emt 0:04:55]} Ne8 {[%emt 0:00:32]} 29. Bd5 {[%emt 0:04:39]} b6 {[%emt 0:00:06]} 30. Kd2 {[%emt 0:00:06]} Kf6 {[%emt 0:00:05]} 31. Ke3 {[%emt 0:10:28]} Kxe7 {[%emt 0:00:09]} 32. Kd4 {[%emt 0:00:05]} Nf6 {[%emt 0:03:57]} 33. Bf3 {[%emt 0:00:07]} Kd6 {[%emt 0:00:33]} 34. c4 {[%emt 0:00:11]} h6 {[%emt 0:03:06]} 35. c5+ {[%emt 0:02:14]} bxc5+ {[%emt 0:00:10]} 36. bxc5+ {[%emt 0:00:04]} Ke6 {[%emt 0:00:08]} 37. Bd1 {[%emt 0:01:34]} g5 {[%emt 0:04:54]} 38. Bb3+ {[%emt 0:00:30]} Ke7 {[%emt 0:00:06]} 39. Ke5 {[%emt 0:05:22]} Ne4 {[%emt 0:05:58]} 40. hxg5 {[%emt 0:00:18]} hxg5 {[%emt 0:00:46]} 41. g4 {[%emt 0:00:34]} Nxc5 {[%emt 0:04:30]} 42. Kxf5 {[%emt 0:00:03]} Kf8 {[%emt 0:03:18]} 43. Kxg5 {[%emt 0:00:13]} Kg7 {[%emt 0:00:03]} 44. Kf5 {[%emt 0:00:14]} a5 {[%emt 0:00:05]} 45. Ke5 {[%emt 0:00:41]} Kg6 {[%emt 0:00:24]} 46. Bc2+ {[%emt 0:02:50]} Kg5 {[%emt 0:00:08]} 47. Kd6 {[%emt 0:00:16]} Na6 {[%emt 0:00:21]} 48. Bf5 {[%emt 0:00:15]} Nb4 {[%emt 0:01:22]} 49. a3 {[%emt 0:00:08]} Na2 {[%emt 0:00:50]} 50. Kc5 {[%emt 0:00:13]} a4 {[%emt 0:13:55]} 51. Kb5 {[%emt 0:00:14]} Nc3+ {[%emt 0:00:05]} 52. Kb4 {[%emt 0:00:04]} Nd5+ {[%emt 0:00:06]} 53. Kxa4 {[%emt 0:00:09]} Kf6 {[%emt 0:00:04]} 54. Kb5 {[%emt 0:00:50]} Ke5 {[%emt 0:00:18]} 55. Kc5 {[%emt 0:00:42]} Nc3 {[%emt 0:00:18]} 56. Bc2 {[%emt 0:02:01]} Kf4 {[%emt 0:00:30]} 57. Kc4 {[%emt 0:00:12]} Ne2 {[%emt 0:00:18]} 58. Bd1 {[%emt 0:00:54]} Ng3 {[%emt 0:00:15]} 59. a4 {[%emt 0:00:32]} Ne4 {[%emt 0:00:52]} 60. a5 {[%emt 0:00:16]} Nd6+ {[%emt 0:00:12]} 61. Kc5 {[%emt 0:01:08]} Ne4+ {[%emt 0:00:07]} 62. Kc6 {[%emt 0:00:08]} Nc3 {[%emt 0:00:05]} 63. a6 {[%emt 0:00:33]} Nxd1 {[%emt 0:00:05]} 64. a7 {[%emt 0:00:02]} Ne3 {[%emt 0:00:05]} 65. a8=Q {[%emt 0:00:07]} Nxg4 {[%emt 0:00:12]} 66. Kd6 {[%emt 0:00:17]} 1-0

[Event "Icelandic Team-ch Premier 2021-22"]
[Site "Reykjavik"]
[Date "2022.03.06"]
[Round "10.14"]
[White "Halldorsson, Gudmundur"]
[Black "Sammalvuo, Tapani"]
[Result "0-1"]
[ECO "E21"]
[WhiteElo "2142"]
[BlackElo "2420"]
[Annotator "ChessBase"]
[PlyCount "136"]
[EventDate "2022.03.05"]
[EventType "team-tourn"]
[EventCountry "ISL"]
[SourceTitle "playchess.com"]
[Source "ChessBase"]
[SourceQuality "1"]
[TimeControl "5400+30"]

1. d4 {[%emt 0:00:12]} Nf6 {[%emt 0:00:04]} 2. c4 {[%emt 0:00:08]} e6 {[%emt 0:00:06]} 3. Nc3 {[%emt 0:00:16]} Bb4 {[%emt 0:00:03]} 4. Bd2 {[%emt 0:00:21]} O-O {[%emt 0:01:22]} 5. Nf3 {[%emt 0:00:15]} c5 {[%emt 0:02:41]} 6. a3 {[%emt 0:05:07]} Bxc3 {[%emt 0:01:34]} 7. Bxc3 {[%emt 0:00:12]} b6 {[%emt 0:03:54]} 8. e3 {[%emt 0:04:40]} Bb7 {[%emt 0:00:21]} 9. Be2 {[%emt 0:00:45]} d6 {[%emt 0:04:56]} 10. O-O {[%emt 0:03:19]} Nbd7 {[%emt 0:01:20]} 11. b4 {[%emt 0:05:10]} Qe7 {[%emt 0:00:25]} 12. Qb3 {[%emt 0:04:47]} Rab8 {[%emt 0:06:07]} 13. Rad1 {[%emt 0:13:07]} Rfc8 {[%emt 0:09:15]} 14. dxc5 {[%emt 0:14:35]} bxc5 {[%emt 0:00:39]} 15. Nd2 {[%emt 0:02:50]} d5 {[%emt 0:07:20]} 16. b5 {[%emt 0:03:43]} Ne8 {[%emt 0:04:22]} 17. a4 {[%emt 0:09:16]} Nd6 {[%emt 0:04:20]} 18. Rfe1 {[%emt 0:02:42]} Qg5 {[%emt 0:13:11]} 19. Bf1 {[%emt 0:02:39]} a6 {[%emt 0:02:34]} 20. Ba1 {[%emt 0:09:22]} axb5 {[%emt 0:00:36]} 21. cxb5 {[%emt 0:01:02]} Ra8 {[%emt 0:06:44]} 22. Bc3 {[%emt 0:02:29]} e5 {[%emt 0:02:50]} 23. Nf3 {[%emt 0:01:48]} Qf6 {[%emt 0:03:11]} 24. Rxd5 {[%emt 0:00:19]} c4 {[%emt 0:08:10]} 25. Qd1 {[%emt 0:00:30]} Bxd5 {[%emt 0:00:12]} 26. Qxd5 {[%emt 0:00:08]} Nb6 {[%emt 0:00:47]} 27. Qd1 {[%emt 0:02:19]} Nb7 {[%emt 0:03:28]} 28. Nxe5 {[%emt 0:02:34]} Nxa4 {[%emt 0:00:29]} 29. Bd4 {[%emt 0:00:08]} Qe6 {[%emt 0:00:25]} 30. Qh5 {[%emt 0:01:56]} Nd6 {[%emt 0:01:34]} 31. g3 {[%emt 0:01:47]} g6 {[%emt 0:02:49]} 32. Qe2 {[%emt 0:03:42]} Nxb5 {[%emt 0:01:05]} 33. Nxc4 {[%emt 0:00:48]} Nxd4 {[%emt 0:01:04]} 34. exd4 {[%emt 0:00:06]} Qe5 {[%emt 0:00:24]} 35. Qe3 Qxe3 {[%emt 0:00:30]} 36. Be2 {[%emt 0:00:38]} Re8 37. Nxe3 {[%emt 0:01:25]} Nc3 {[%emt 0:04:08]} 38. Bf3 {[%emt 0:00:19]} Rad8 {[%emt 0:00:34]} 39. Rc1 {[%emt 0:00:09]} Ne4 {[%emt 0:00:05]} 40. Rd1 {[%emt 0:00:14]} Nd6 {[%emt 0:00:16]} 41. h4 {[%emt 0:00:31]} Kg7 {[%emt 0:00:15]} 42. Kg2 {[%emt 0:00:08]} Rc8 {[%emt 0:00:20]} 43. Rd3 {[%emt 0:01:24]} Red8 {[%emt 0:00:07]} 44. g4 {[%emt 0:00:42]} f6 {[%emt 0:01:21]} 45. Kg3 {[%emt 0:00:16]} Nb5 {[%emt 0:00:18]} 46. d5 {[%emt 0:00:24]} Nd6 {[%emt 0:00:15]} 47. Ng2 {[%emt 0:00:57]} Nf7 {[%emt 0:01:42]} 48. Rd4 {[%emt 0:01:00]} Rc3 {[%emt 0:00:28]} 49. Ne3 {[%emt 0:00:16]} Nd6 {[%emt 0:00:27]} 50. Kf4 {[%emt 0:00:38]} Ra3 {[%emt 0:01:02]} 51. Kg3 {[%emt 0:00:33]} Rb8 {[%emt 0:00:13]} 52. Rd2 {[%emt 0:02:15]} Rc3 {[%emt 0:02:10]} 53. Ra2 {[%emt 0:00:15]} Rb7 {[%emt 0:00:06]} 54. Ra6 {[%emt 0:00:29]} Nf7 {[%emt 0:00:39]} 55. Be4 {[%emt 0:00:56]} Re7 {[%emt 0:00:19]} 56. Ra4 {[%emt 0:00:44]} Ne5 {[%emt 0:00:42]} 57. Bg2 {[%emt 0:00:31]} Nd3 {[%emt 0:01:52]} 58. Re4 {[%emt 0:00:02]} Rd7 {[%emt 0:00:33]} 59. Rd4 {[%emt 0:00:13]} Ne5 {[%emt 0:00:12]} 60. Be4 {[%emt 0:00:15]} Nf7 {[%emt 0:00:38]} 61. Bg2 {[%emt 0:00:15]} Ra3 {[%emt 0:00:18]} 62. Be4 {[%emt 0:00:14]} Nd6 {[%emt 0:00:35]} 63. Bd3 {[%emt 0:00:16]} Rc7 {[%emt 0:00:26]} 64. Bf1 {[%emt 0:00:33]} f5 {[%emt 0:00:20]} 65. Bh3 {[%emt 0:00:25]} fxg4 {[%emt 0:01:22]} 66. Bxg4 {[%emt 0:00:10]} Re7 {[%emt 0:00:28]} 67. Be6 {[%emt 0:00:29]} Rxe6 {[%emt 0:00:43]} 68. dxe6 {[%emt 0:00:15]} Nf5+ {[%emt 0:00:02]} 0-1

[Event "Icelandic Team-ch Premier 2021-22"]
[Site "Reykjavik"]
[Date "2022.03.06"]
[Round "10.15"]
[White "Kjartansson, David"]
[Black "Dadason, Gudmundur"]
[Result "1-0"]
[ECO "D00"]
[WhiteElo "2304"]
[BlackElo "2097"]
[Annotator "NA"]
[PlyCount "61"]
[EventDate "2022.03.05"]
[EventType "team-tourn"]
[EventCountry "ISL"]
[SourceTitle "playchess.com"]
[Source "ChessBase"]
[SourceQuality "1"]
[TimeControl "5400+30"]

1. d4 {[%emt 0:00:23]} Nf6 {[%emt 0:00:10]} 2. Nc3 {[%emt 0:00:06]} d5 {[%emt 0:02:13]} 3. Bf4 {[%emt 0:00:08]} a6 {[%emt 0:03:34]} 4. e3 {[%emt 0:00:31]} Bf5 {[%emt 0:00:50]} 5. Nf3 {[%emt 0:01:06]} e6 {[%emt 0:00:19]} 6. Ne5 {[%emt 0:01:11]} Nbd7 {[%emt 0:10:49]} 7. g4 {[%emt 0:01:51]} Nxe5 {[%emt 0:13:52]} 8. gxf5 {[%emt 0:00:11]} Nc6 {[%emt 0:00:51]} 9. fxe6 {[%emt 0:02:33]} fxe6 {[%emt 0:06:50]} 10. Rg1 {[%emt 0:01:46]} Qd7 {[%emt 0:02:14]} 11. a3 {[%emt 0:00:41]} Bd6 {[%emt 0:06:09]} 12. Qf3 {[%emt 0:03:06]} Bxf4 {[%emt 0:07:49]} 13. Qxf4 {[%emt 0:00:12]} Rf8 {[%emt 0:01:19]} 14. Qg3 {[%emt 0:02:26]} Rf7 {[%emt 0:03:15]} 15. O-O-O {[%emt 0:04:27]} O-O-O {[%emt 0:01:24]} 16. f3 {[%emt 0:01:04]} Qd6 {[%emt 0:08:05]} 17. Bh3 {[%emt 0:01:20]} Kb8 {[%emt 0:09:02]} 18. f4 {[%emt 0:03:52]} Na5 {[%emt 0:06:17]} 19. Bf1 {[%emt 0:06:20]} Ka8 {[%emt 0:05:34]} 20. Qe1 {[%emt 0:02:40]} Qc6 {[%emt 0:01:40]} 21. b3 {[%emt 0:02:16]} Qd6 {[%emt 0:03:14]} 22. Kb2 {[%emt 0:00:21]} Nc6 {[%emt 0:00:48]} 23. Na4 {[%emt 0:01:12]} Ne4 {[%emt 0:00:37]} 24. Bd3 {[%emt 0:02:00]} b5 {[%emt 0:00:39]} 25. Nc3 {[%emt 0:03:13]} Nxc3 {[%emt 0:00:19]} 26. Qxc3 {[%emt 0:00:16]} h6 {[%emt 0:00:56]} 27. Rg3 {[%emt 0:01:03]} Kb7 {[%emt 0:00:40]} 28. Rdg1 {[%emt 0:00:19]} Rdd7 {[%emt 0:01:09]} 29. Rg6 {[%emt 0:01:15]} Qe7 {[%emt 0:00:52]} 30. a4 {[%emt 0:02:37]} b4 {[%emt 0:01:35]} 31. Bxa6+ {[%emt 0:00:41]} 1-0